fUST/lending_fUST_20250316
["ID","MTS","AMOUNT","RATE_DAILY","PERIOD"]
[356196195,1742065845507,-551.54,9.315e-05,2]
[356196196,1742065845517,-500.0,9.315e-05,2]
[356196197,1742065845526,-500.0,9.315e-05,2]
[356196198,1742065845537,-3200.5,9.315e-05,2]
[356196199,1742065845547,-500.0,9.315e-05,2]
[356196200,1742065845731,-500.0,9.315e-05,2]
[356196201,1742065845741,-655.41,9.315e-05,2]
[356196202,1742065845751,-10030.42,9.315e-05,2]
[356196203,1742065845760,-300.0,9.479e-05,2]
[356196204,1742065845769,-811.33,9.589e-05,2]
[356196205,1742065845779,-500.0,9.589e-05,2]
[356196206,1742065845789,-500.0,9.589e-05,2]
[356196207,1742065845798,-500.0,9.589e-05,2]
[356196208,1742065845808,-500.0,9.589e-05,2]
[356196209,1742065845817,-500.0,9.589e-05,2]
[356196210,1742065845826,-529.43,9.589e-05,2]
[356196211,1742065845835,-500.0,9.589e-05,2]
[356196212,1742065845845,-500.0,9.589e-05,2]
[356196213,1742065845854,-500.0,9.589e-05,2]
[356196214,1742065845864,-500.0,9.589e-05,2]
[356196216,1742065845873,-666.73,9.589e-05,2]
[356196218,1742065845882,-500.0,9.589e-05,2]
[356196219,1742065845892,-751.68,9.589e-05,2]
[356196220,1742065845901,-557.11,9.589e-05,2]
[356196221,1742065845911,-627.37934187,9.589e-05,2]
[356196222,1742065845921,-787.63,9.589e-05,2]
[356196223,1742065845930,-500.0,9.589e-05,2]
[356196224,1742065845940,-1116.97,9.589e-05,2]
[356196225,1742065845950,-548.89,9.589e-05,2]
[356196226,1742065845960,-500.0,9.589e-05,2]
[356196227,1742065845969,-500.0,9.589e-05,2]
[356196228,1742065845979,-717.68,9.589e-05,2]
[356196229,1742065845989,-500.0,9.589e-05,2]
[356196230,1742065845998,-500.0,9.589e-05,2]
[356196231,1742065846008,-824.65,9.589e-05,2]
[356196232,1742065846017,-500.0,9.589e-05,2]
[356196233,1742065846027,-500.0,9.589e-05,2]
[356196234,1742065846037,-706.05,9.589e-05,2]
[356196235,1742065846046,-853.08,9.589e-05,2]
[356196236,1742065846056,-711.89,9.589e-05,2]
[356196237,1742065846066,-500.0,9.589e-05,2]
[356196238,1742065846076,-500.0,9.589e-05,2]
[356196239,1742065846086,-500.0,9.589e-05,2]
[356196240,1742065846096,-500.0,9.589e-05,2]
[356196241,1742065846106,-500.0,9.589e-05,2]
[356196242,1742065846115,-500.0,9.589e-05,2]
[356196243,1742065846125,-557.03,9.589e-05,2]
[356196244,1742065846135,-500.0,9.589e-05,2]
[356196246,1742065846145,-515.79,9.589e-05,2]
[356196247,1742065846155,-500.0,9.589e-05,2]
[356196248,1742065846165,-525.9,9.589e-05,2]
[356196249,1742065846175,-5244.95,9.589e-05,2]
[356196250,1742065846185,-1144.16,9.589e-05,2]
[356196251,1742065846194,-986.31,9.589e-05,2]
[356196252,1742065846204,-1296.84,9.589e-05,2]
[356196253,1742065846214,-4370.86,9.589e-05,2]
[356196254,1742065846224,-500.0,9.589e-05,2]
[356196255,1742065846234,-892.6,9.589e-05,2]
[356196256,1742065846243,-500.0,9.589e-05,2]
[356196257,1742065846252,-500.0,9.589e-05,2]
[356196258,1742065846262,-3424.71,9.589e-05,2]
[356196259,1742065846271,-234.75812875,9.589e-05,2]
[356196260,1742065846280,-1357.95,9.589e-05,2]
[356196261,1742065846290,-649.43907927,9.589e-05,2]
[356196262,1742065846299,-580.2,9.589e-05,2]
[356196263,1742065846309,-500.0,9.589e-05,2]
[356196264,1742065846319,-500.0,9.589e-05,2]
[356196265,1742065846328,-500.0,9.589e-05,2]
[356196266,1742065846338,-500.0,9.589e-05,2]
[356196267,1742065846348,-492.26738,9.589e-05,2]
[356196268,1742065846359,-6986.15,9.589e-05,2]
[356196269,1742065846371,-500.0,9.589e-05,2]
[356196270,1742065846380,-500.0,9.589e-05,2]
[356196271,1742065846389,-1333.25,9.589e-05,2]
[356196272,1742065846399,-500.0,9.589e-05,2]
[356196273,1742065846409,-952.49,9.589e-05,2]
[356196274,1742065846419,-548.54,9.589e-05,2]
[356196275,1742065846428,-500.0,9.589e-05,2]
[356196276,1742065846439,-1359.45,9.589e-05,2]
[356196277,1742065846448,-500.0,9.589e-05,2]
[356196278,1742065846458,-850.27,9.589e-05,2]
[356196279,1742065846467,-11364.73,9.589e-05,2]
[356196280,1742065846477,-474.15307062,9.589e-05,2]
[356196281,1742065846487,-3991.13,9.589e-05,2]
[356196282,1742065846497,-1747.8,9.589e-05,2]
[356196283,1742065846507,-582.99,9.589e-05,2]
[356196284,1742065846516,-6722.07,9.589e-05,2]
[356196285,1742065846526,-3343.54,9.589e-05,2]
[356196286,1742065846536,-2418.82,9.589e-05,2]
[356196287,1742065846546,-500.0,9.589e-05,2]
[356196288,1742065846556,-1265.43,9.589e-05,2]
[356196289,1742065846566,-8027.27,9.589e-05,2]
[356196290,1742065846575,-1050.86,9.589e-05,2]
[356196291,1742065846584,-1187.31,9.589e-05,2]
[356196292,1742065846594,-1196.89,9.589e-05,2]
[356196293,1742065846603,-2868.23,9.589e-05,2]
[356196294,1742065846613,-597.5,9.589e-05,2]
[356196296,1742065846622,-500.0,9.589e-05,2]
[356196298,1742065846631,-631.07,9.589e-05,2]
[356196300,1742065846641,-594.83,9.589e-05,2]
[356196301,1742065846651,-500.0,9.589e-05,2]
[356196302,1742065846660,-1966.07,9.589e-05,2]
[356196303,1742065846670,-2660.13,9.589e-05,2]
[356196304,1742065846679,-4249.53,9.589e-05,2]
[356196305,1742065846688,-698.65,9.589e-05,2]
[356196306,1742065846698,-687.06,9.589e-05,2]
[356196307,1742065846707,-9038.5,9.589e-05,2]
[356196308,1742065846717,-16063.6,9.589e-05,2]
[356196309,1742065846726,-500.0,9.589e-05,2]
[356196310,1742065846736,-1005.05,9.589e-05,2]
[356196311,1742065846745,-500.0,9.589e-05,2]
[356196312,1742065846754,-551.54,9.589e-05,2]
[356196313,1742065846764,-500.0,9.589e-05,2]
[356196314,1742065846773,-500.0,9.589e-05,2]
[356196315,1742065846782,-3200.5,9.589e-05,2]
[356196316,1742065846791,-500.0,9.589e-05,2]
[356196317,1742065846801,-500.0,9.589e-05,2]
[356196318,1742065846811,-655.41,9.589e-05,2]
[356196319,1742065846819,-10030.42,9.589e-05,2]
[356196320,1742065846830,-2500.0,9.59e-05,2]
[356196321,1742065846839,-160.0,9.746e-05,3]
[356196322,1742065846849,-811.33,9.863e-05,2]
[356196323,1742065846858,-500.0,9.863e-05,2]
[356196324,1742065846868,-500.0,9.863e-05,2]
[356196325,1742065846877,-500.0,9.863e-05,2]
[356196326,1742065846887,-500.0,9.863e-05,2]
[356196327,1742065846897,-500.0,9.863e-05,2]
[356196328,1742065846906,-529.43,9.863e-05,2]
[356196329,1742065846917,-500.0,9.863e-05,2]
[356196330,1742065846927,-500.0,9.863e-05,2]
[356196331,1742065846937,-435.30122949,9.863e-05,2]
[356196332,1742065846947,-500.0,9.863e-05,2]
[356196333,1742065846956,-666.73,9.863e-05,2]
[356196334,1742065846966,-500.0,9.863e-05,2]
[356196335,1742065846976,-751.68,9.863e-05,2]
[356196336,1742065846987,-557.11,9.863e-05,2]
[356196337,1742065846996,-787.63,9.863e-05,2]
[356196338,1742065847006,-500.0,9.863e-05,2]
[356196339,1742065847015,-1116.97,9.863e-05,2]
[356196340,1742065847026,-548.89,9.863e-05,2]
[356196341,1742065847035,-500.0,9.863e-05,2]
[356196342,1742065847044,-500.0,9.863e-05,2]
[356196343,1742065847054,-717.68,9.863e-05,2]
[356196344,1742065847063,-500.0,9.863e-05,2]
[356196345,1742065847073,-500.0,9.863e-05,2]
[356196346,1742065847083,-824.65,9.863e-05,2]
[356196347,1742065847093,-500.0,9.863e-05,2]
[356196348,1742065847103,-500.0,9.863e-05,2]
[356196349,1742065847112,-706.05,9.863e-05,2]
[356196350,1742065847122,-853.08,9.863e-05,2]
[356196351,1742065847132,-711.89,9.863e-05,2]
[356196352,1742065847142,-500.0,9.863e-05,2]
[356196353,1742065847151,-500.0,9.863e-05,2]
[356196354,1742065847161,-500.0,9.863e-05,2]
[356196355,1742065847170,-500.0,9.863e-05,2]
[356196356,1742065847180,-500.0,9.863e-05,2]
[356196357,1742065847190,-500.0,9.863e-05,2]
[356196358,1742065847200,-557.03,9.863e-05,2]
[356196359,1742065847209,-500.0,9.863e-05,2]
[356196360,1742065847219,-515.79,9.863e-05,2]
[356196361,1742065847228,-500.0,9.863e-05,2]
[356196362,1742065847238,-525.9,9.863e-05,2]
[356196363,1742065847247,-5244.95,9.863e-05,2]
[356196364,1742065847257,-1144.16,9.863e-05,2]
[356196365,1742065847266,-986.31,9.863e-05,2]
[356196366,1742065847276,-1296.84,9.863e-05,2]
[356196367,1742065847286,-4370.86,9.863e-05,2]
[356196368,1742065847296,-500.0,9.863e-05,2]
[356196369,1742065847305,-892.6,9.863e-05,2]
[356196370,1742065847315,-500.0,9.863e-05,2]
[356196371,1742065847323,-500.0,9.863e-05,2]
[356196372,1742065847332,-3424.71,9.863e-05,2]
[356196373,1742065847342,-1357.95,9.863e-05,2]
[356196374,1742065847351,-580.2,9.863e-05,2]
[356196375,1742065847362,-500.0,9.863e-05,2]
[356196376,1742065847372,-500.0,9.863e-05,2]
[356196377,1742065847381,-500.0,9.863e-05,2]
[356196378,1742065847390,-500.0,9.863e-05,2]
[356196379,1742065847400,-6986.15,9.863e-05,2]
[356196380,1742065847410,-544.52,9.863e-05,2]
[356196381,1742065847419,-500.0,9.863e-05,2]
[356196382,1742065847428,-1333.25,9.863e-05,2]
[356196383,1742065847438,-500.0,9.863e-05,2]
[356196384,1742065847447,-952.49,9.863e-05,2]
[356196385,1742065847456,-548.54,9.863e-05,2]
[356196386,1742065847466,-500.0,9.863e-05,2]
[356196387,1742065847475,-1359.45,9.863e-05,2]
[356196388,1742065847484,-500.0,9.863e-05,2]
[356196389,1742065847493,-850.27,9.863e-05,2]
[356196390,1742065847502,-11364.73,9.863e-05,2]
[356196391,1742065847511,-3991.13,9.863e-05,2]
[356196392,1742065847521,-1747.8,9.863e-05,2]
[356196393,1742065847530,-582.99,9.863e-05,2]
[356196394,1742065847540,-6722.07,9.863e-05,2]
[356196395,1742065847549,-3343.54,9.863e-05,2]
[356196396,1742065847558,-2418.82,9.863e-05,2]
[356196397,1742065847567,-1265.43,9.863e-05,2]
[356196398,1742065847576,-500.0,9.863e-05,2]
[356196399,1742065847585,-8027.27,9.863e-05,2]
[356196400,1742065847594,-1050.86,9.863e-05,2]
[356196401,1742065847603,-1187.31,9.863e-05,2]
[356196402,1742065847612,-1196.89,9.863e-05,2]
[356196403,1742065847622,-2868.23,9.863e-05,2]
[356196404,1742065847631,-597.5,9.863e-05,2]
[356196405,1742065847640,-500.0,9.863e-05,2]
[356196406,1742065847649,-631.07,9.863e-05,2]
[356196407,1742065847658,-594.83,9.863e-05,2]
[356196408,1742065847667,-500.0,9.863e-05,2]
[356196409,1742065847676,-1966.07,9.863e-05,2]
[356196410,1742065847685,-2660.13,9.863e-05,2]
[356196411,1742065847695,-4249.53,9.863e-05,2]
[356196412,1742065847704,-698.65,9.863e-05,2]
[356196413,1742065847714,-687.06,9.863e-05,2]
[356196414,1742065847723,-9038.5,9.863e-05,2]
[356196415,1742065847733,-16063.6,9.863e-05,2]
[356196416,1742065847742,-177.37867949,9.863e-05,2]
[356196417,1742065847751,-1005.05,9.863e-05,2]
[356196418,1742065847760,-500.0,9.863e-05,2]
[356196419,1742065847769,-551.54,9.863e-05,2]
[356196420,1742065847779,-500.0,9.863e-05,2]
[356196421,1742065847789,-500.0,9.863e-05,2]
[356196422,1742065847799,-3200.5,9.863e-05,2]
[356196423,1742065847808,-500.0,9.863e-05,2]
[356196424,1742065847817,-500.0,9.863e-05,2]
[356196425,1742065847826,-655.41,9.863e-05,2]
[356196426,1742065847835,-10030.42,9.863e-05,2]
[356196427,1742065847844,-500.0,9.91e-05,2]
[356196428,1742065847854,-587.0,9.943e-05,2]
[356196429,1742065847863,-500.0,9.994e-05,2]
[356196430,1742065847872,-2000.0,0.0001,2]
[356196431,1742065847881,-56110.8164182,0.0001,2]
[356196432,1742065847891,-2120.32101284,0.0001,2]
[356196433,1742065847900,-700.0,0.0001,2]
[356196434,1742065847910,-400.0,0.0001,2]
[356196435,1742065847919,-1723.84115004,0.0001,2]
[356196436,1742065847928,-8752.0,0.0001,2]
[356196437,1742065847938,-6583.9032005,0.0001,2]
[356196438,1742065847947,-1000.0,0.0001,2]
[356196439,1742065847956,-1000.0,0.0001,2]
[356196440,1742065847965,-512.73325523,0.0001,2]
[356196441,1742065847974,-17660.34298129,0.0001,2]
[356196442,1742065848023,-17660.34298114,0.0001,2]
[356196443,1742065848033,-17660.34298114,0.0001,2]
[356196444,1742065848042,-501.28920938,0.00010016,2]
[356196445,1742065848050,-811.33,0.00010136,2]
[356196446,1742065848060,-500.0,0.00010136,2]
[356196447,1742065848070,-280.84196852,0.00010136,2]
[356196448,1742065848080,-500.0,0.00010136,2]
[356196449,1742065848089,-500.0,0.00010136,2]
[356196450,1742065848099,-500.0,0.00010136,2]
[356196451,1742065848109,-529.43,0.00010136,2]
[356196452,1742065848119,-500.0,0.00010136,2]
[356196453,1742065848129,-500.0,0.00010136,2]
[356196454,1742065848139,-500.0,0.00010136,2]
[356196455,1742065848148,-666.73,0.00010136,2]
[356196456,1742065848158,-500.0,0.00010136,2]
[356196457,1742065848167,-751.68,0.00010136,2]
[356196458,1742065848177,-557.11,0.00010136,2]
[356196459,1742065848187,-787.63,0.00010136,2]
[356196460,1742065848197,-500.0,0.00010136,2]
[356196461,1742065848206,-1116.97,0.00010136,2]
[356196462,1742065848216,-548.89,0.00010136,2]
[356196463,1742065848225,-500.0,0.00010136,2]
[356196464,1742065848235,-500.0,0.00010136,2]
[356196465,1742065848244,-717.68,0.00010136,2]
[356196466,1742065848254,-500.0,0.00010136,2]
[356196467,1742065848264,-165.18763957,0.00010136,2]
[356196468,1742065848274,-824.65,0.00010136,2]
[356196469,1742065848283,-500.0,0.00010136,2]
[356196470,1742065848293,-500.0,0.00010136,2]
[356196471,1742065848302,-706.05,0.00010136,2]
[356196472,1742065848311,-853.08,0.00010136,2]
[356196473,1742065848320,-711.89,0.00010136,2]
[356196474,1742065848330,-500.0,0.00010136,2]
[356196475,1742065848339,-183.29194464,0.00010136,2]
[356196476,1742065848348,-500.0,0.00010136,2]
[356196477,1742065848359,-500.0,0.00010136,2]
[356196478,1742065848371,-500.0,0.00010136,2]
[356196479,1742065848380,-500.0,0.00010136,2]
[356196480,1742065848390,-557.03,0.00010136,2]
[356196481,1742065848399,-515.79,0.00010136,2]
[356196482,1742065848410,-500.0,0.00010136,2]
[356196483,1742065848419,-525.9,0.00010136,2]
[356196484,1742065848428,-5244.95,0.00010136,2]
[356196485,1742065848438,-1144.16,0.00010136,2]
[356196486,1742065848449,-986.31,0.00010136,2]
[356196487,1742065848459,-1296.84,0.00010136,2]
[356196488,1742065848469,-4370.86,0.00010136,2]
[356196489,1742065848478,-500.0,0.00010136,2]
[356196490,1742065848491,-892.6,0.00010136,2]
[356196491,1742065848500,-500.0,0.00010136,2]
[356196492,1742065848510,-500.0,0.00010136,2]
[356196493,1742065848519,-3424.71,0.00010136,2]
[356196494,1742065848529,-1357.95,0.00010136,2]
[356196495,1742065848538,-580.2,0.00010136,2]
[356196496,1742065848548,-500.0,0.00010136,2]
[356196497,1742065848557,-500.0,0.00010136,2]
[356196498,1742065848567,-500.0,0.00010136,2]
[356196499,1742065848576,-500.0,0.00010136,2]
[356196500,1742065848585,-6986.15,0.00010136,2]
[356196501,1742065848595,-500.0,0.00010136,2]
[356196502,1742065848604,-1333.25,0.00010136,2]
[356196503,1742065848613,-500.0,0.00010136,2]
[356196504,1742065848623,-952.49,0.00010136,2]
[356196505,1742065848632,-548.54,0.00010136,2]
[356196506,1742065848641,-500.0,0.00010136,2]
[356196507,1742065848650,-1359.45,0.00010136,2]
[356196508,1742065848659,-500.0,0.00010136,2]
[356196509,1742065848668,-850.27,0.00010136,2]
[356196510,1742065848677,-11364.73,0.00010136,2]
[356196511,1742065848686,-3991.13,0.00010136,2]
[356196512,1742065848695,-1747.8,0.00010136,2]
[356196513,1742065848705,-582.99,0.00010136,2]
[356196514,1742065848714,-6722.07,0.00010136,2]
[356196515,1742065848725,-3343.54,0.00010136,2]
[356196516,1742065848735,-2418.82,0.00010136,2]
[356196517,1742065848744,-1265.43,0.00010136,2]
[356196518,1742065848754,-500.0,0.00010136,2]
[356196519,1742065848763,-8027.27,0.00010136,2]
[356196520,1742065848772,-1050.86,0.00010136,2]
[356196521,1742065848782,-1187.31,0.00010136,2]
[356196522,1742065848791,-1196.89,0.00010136,2]
[356196523,1742065848800,-2868.23,0.00010136,2]
[356196524,1742065848809,-597.5,0.00010136,2]
[356196525,1742065848818,-500.0,0.00010136,2]
[356196526,1742065848828,-631.07,0.00010136,2]
[356196527,1742065848837,-594.83,0.00010136,2]
[356196528,1742065848846,-500.0,0.00010136,2]
[356196529,1742065848855,-1966.07,0.00010136,2]
[356196530,1742065848865,-2660.13,0.00010136,2]
[356196531,1742065848875,-4249.53,0.00010136,2]
[356196532,1742065848884,-698.65,0.00010136,2]
[356196533,1742065848893,-687.06,0.00010136,2]
[356196534,1742065848902,-9038.5,0.00010136,2]
[356196535,1742065848912,-16063.6,0.00010136,2]
[356196536,1742065848921,-1005.05,0.00010136,2]
[356196537,1742065848930,-500.0,0.00010136,2]
[356196538,1742065848940,-551.54,0.00010136,2]
[356196539,1742065848950,-500.0,0.00010136,2]
[356196540,1742065848959,-500.0,0.00010136,2]
[356196541,1742065848969,-3200.5,0.00010136,2]
[356196542,1742065848978,-500.0,0.00010136,2]
[356196543,1742065848989,-196.81805674,0.00010136,2]
[356196544,1742065848998,-655.41,0.00010136,2]
[356196545,1742065849007,-10030.42,0.00010136,2]
[356196546,1742065849017,-160.0,0.0001019,4]
[356196547,1742065849027,-417.70543571,0.00010207,2]
[356196548,1742065849036,-811.33,0.0001041,2]
[356196549,1742065849046,-500.0,0.0001041,2]
[356196550,1742065849056,-238.5222437,0.0001041,2]
[356196551,1742065849065,-500.0,0.0001041,2]
[356196552,1742065849075,-500.0,0.0001041,2]
[356196553,1742065849084,-529.43,0.0001041,2]
[356196554,1742065849094,-500.0,0.0001041,2]
[356196555,1742065849104,-500.0,0.0001041,2]
[356196556,1742065849113,-500.0,0.0001041,2]
[356196557,1742065849123,-666.73,0.0001041,2]
[356196558,1742065849132,-432.83256202,0.0001041,2]
[356196559,1742065849142,-751.68,0.0001041,2]
[356196560,1742065849151,-557.11,0.0001041,2]
[356196561,1742065849160,-787.63,0.0001041,2]
[356196562,1742065849170,-500.0,0.0001041,2]
[356196563,1742065849180,-1116.97,0.0001041,2]
[356196564,1742065849189,-548.89,0.0001041,2]
[356196565,1742065849199,-500.0,0.0001041,2]
[356196566,1742065849208,-500.0,0.0001041,2]
[356196567,1742065849217,-717.68,0.0001041,2]
[356196568,1742065849227,-500.0,0.0001041,2]
[356196569,1742065849237,-824.65,0.0001041,2]
[356196570,1742065849246,-500.0,0.0001041,2]
[356196571,1742065849255,-500.0,0.0001041,2]
[356196572,1742065849264,-706.05,0.0001041,2]
[356196573,1742065849274,-853.08,0.0001041,2]
[356196574,1742065849284,-711.89,0.0001041,2]
[356196575,1742065849294,-500.0,0.0001041,2]
[356196576,1742065849303,-500.0,0.0001041,2]
[356196577,1742065849312,-500.0,0.0001041,2]
[356196578,1742065849322,-500.0,0.0001041,2]
[356196579,1742065849331,-500.0,0.0001041,2]
[356196580,1742065849340,-557.03,0.0001041,2]
[356196581,1742065849350,-515.79,0.0001041,2]
[356196582,1742065849360,-500.0,0.0001041,2]
[356196583,1742065849370,-525.9,0.0001041,2]
[356196584,1742065849380,-5244.95,0.0001041,2]
[356196585,1742065849389,-1144.16,0.0001041,2]
[356196586,1742065849399,-986.31,0.0001041,2]
[356196587,1742065849408,-1296.84,0.0001041,2]
[356196588,1742065849418,-4370.86,0.0001041,2]
[356196589,1742065849428,-500.0,0.0001041,2]
[356196590,1742065849438,-892.6,0.0001041,2]
[356196591,1742065849448,-500.0,0.0001041,2]
[356196592,1742065849457,-195.14037105,0.0001041,2]
[356196593,1742065849466,-3424.71,0.0001041,2]
[356196594,1742065849475,-1357.95,0.0001041,2]
[356196595,1742065849486,-580.2,0.0001041,2]
[356196596,1742065849495,-353.92,0.0001041,2]
[356196597,1742065849505,-500.0,0.0001041,2]
[356196598,1742065849514,-500.0,0.0001041,2]
[356196599,1742065849523,-500.0,0.0001041,2]
[356196600,1742065849532,-6986.15,0.0001041,2]
[356196601,1742065849541,-500.0,0.0001041,2]
[356196602,1742065849550,-1333.25,0.0001041,2]
[356196603,1742065849560,-500.0,0.0001041,2]
[356196604,1742065849570,-952.49,0.0001041,2]
[356196605,1742065849579,-548.54,0.0001041,2]
[356196606,1742065849588,-500.0,0.0001041,2]
[356196607,1742065849597,-1359.45,0.0001041,2]
[356196608,1742065849605,-500.0,0.0001041,2]
[356196609,1742065849614,-850.27,0.0001041,2]
[356196610,1742065849623,-11364.73,0.0001041,2]
[356196611,1742065849632,-3991.13,0.0001041,2]
[356196612,1742065849641,-1747.8,0.0001041,2]
[356196613,1742065849650,-582.99,0.0001041,2]
[356196614,1742065849659,-6722.07,0.0001041,2]
[356196615,1742065849669,-3343.54,0.0001041,2]
[356196616,1742065849678,-2418.82,0.0001041,2]
[356196617,1742065849687,-1265.43,0.0001041,2]
[356196618,1742065849696,-500.0,0.0001041,2]
[356196619,1742065849705,-8027.27,0.0001041,2]
[356196620,1742065849714,-1050.86,0.0001041,2]
[356196621,1742065849724,-1187.31,0.0001041,2]
[356196622,1742065849734,-1196.89,0.0001041,2]
[356196623,1742065849744,-2868.23,0.0001041,2]
[356196624,1742065849754,-597.5,0.0001041,2]
[356196625,1742065849767,-120.99610223,0.0001041,2]
[356196626,1742065850628,-2461.13,8.219e-05,2]
[356196627,1742065850638,-6756.27,8.219e-05,2]
[356196628,1742065850648,-500.0,8.219e-05,2]
[356196629,1742065850658,-500.0,8.219e-05,2]
[356196630,1742065850667,-500.0,8.219e-05,2]
[356196631,1742065850677,-500.0,8.219e-05,2]
[356196632,1742065850687,-6756.27,8.493e-05,2]
[356196633,1742065850697,-2461.13,8.493e-05,2]
[356196634,1742065850706,-500.0,8.493e-05,2]
[356196635,1742065850716,-500.0,8.493e-05,2]
[356196636,1742065850725,-158.3,8.493e-05,2]
[356196637,1742065850735,-834.96754831,8.704e-05,2]
[356196638,1742065850745,-6756.27,8.767e-05,2]
[356196639,1742065850756,-2461.13,8.767e-05,2]
[356196640,1742065850765,-161.22,8.767e-05,2]
[356196641,1742065850775,-834.96754831,8.826e-05,2]
[356196642,1742065850784,-1846.43896363,9.041e-05,2]
[356196643,1742065850833,-4909.83103637,9.041e-05,2]
[356196644,1742065850843,-2461.13,9.041e-05,2]
[356196645,1742065850852,-834.96754831,9.044e-05,2]
[356196646,1742065850862,-6756.27,9.315e-05,2]
[356196647,1742065850871,-2461.13,9.315e-05,2]
[356196648,1742065850881,-198.05438385,9.55e-05,2]
[356196649,1742065850906,-636.91316446,9.55e-05,2]
[356196650,1742065850916,-2465.94548501,9.589e-05,2]
[356196651,1742065851032,-506.21513125,8.219e-05,2]
[356196652,1742065851042,-500.0,8.219e-05,2]
[356196653,1742065851053,-504.40388186,8.219e-05,2]
[356196654,1742065851062,-385.37098689,9.589e-05,2]
[356196655,1742065851074,-2808.88207405,9.589e-05,2]
[356196656,1742065898280,477.45,0.00014001,30]
[356196682,1742067032598,-2828.25161385,8.116e-05,2]
[356196683,1742067032608,-500.0,8.118e-05,2]
[356196684,1742067032617,-500.0,8.118e-05,2]
[356196685,1742067032627,-194.82856301,8.118e-05,2]
[356196686,1742067032637,-300.0,8.118e-05,2]
[356196687,1742067032647,-71940.51418005,8.119e-05,2]
[356196688,1742067032662,-30336.83003312,8.119e-05,2]
[356196689,1742067032695,-11858.12447133,8.119e-05,2]
[356196690,1742067032704,-618.95509089,8.193e-05,2]
[356196691,1742067032713,-515.97186591,8.193e-05,2]
[356196692,1742067032723,-500.0,8.193e-05,2]
[356196693,1742067032733,-220.21503336,8.193e-05,2]
[356196694,1742067032746,-494.14459773,8.193e-05,2]
[356196695,1742067032755,-327.52066194,8.193e-05,2]
[356196696,1742067032764,-500.0,8.193e-05,2]
[356196697,1742067032773,-500.0,8.193e-05,2]
[356196698,1742067032784,-500.0,8.193e-05,2]
[356196699,1742067032793,-500.0,8.193e-05,2]
[356196700,1742067032804,-500.0,8.193e-05,2]
[356196701,1742067032814,-500.0,8.193e-05,2]
[356196702,1742067032825,-500.0,8.193e-05,2]
[356196703,1742067032835,-500.0,8.193e-05,2]
[356196704,1742067032845,-500.0,8.193e-05,2]
[356196705,1742067032854,-501.15957283,8.193e-05,2]
[356196706,1742067032864,-503.25237333,8.193e-05,2]
[356196707,1742067032874,-500.0,8.193e-05,2]
[356196708,1742067032883,-500.0,8.193e-05,2]
[356196709,1742067032892,-500.0,8.193e-05,2]
[356196710,1742067032902,-500.0,8.193e-05,2]
[356196711,1742067032911,-500.0,8.193e-05,2]
[356196712,1742067032921,-500.0,8.193e-05,2]
[356196713,1742067032930,-500.0,8.193e-05,2]
[356196714,1742067032939,-500.0,8.193e-05,2]
[356196715,1742067032949,-500.0,8.193e-05,2]
[356196716,1742067032958,-500.0,8.193e-05,2]
[356196717,1742067032967,-285.11917459,8.193e-05,2]
[356196718,1742067032977,-500.0,8.193e-05,2]
[356196719,1742067032987,-500.0,8.193e-05,2]
[356196720,1742067032996,-500.0,8.193e-05,2]
[356196721,1742067033006,-500.0,8.193e-05,2]
[356196722,1742067033015,-500.01596826,8.193e-05,2]
[356196723,1742067033025,-5611.0703686,8.193e-05,2]
[356196724,1742067033035,-241.99634962,8.193e-05,2]
[356196725,1742067033045,-151.0,8.214e-05,2]